bitfinex/quotes_SOLUSD_20251228
["timestamp","ask_amount","ask_price","bid_price","bid_amount"]
[1766892826812,2.64452033,124.23,124.2,2.60452033]
[1766892827113,0.68,124.22,124.2,1.94452033]
[1766892827313,0.68,124.22,124.19,2.60452033]
[1766892828911,0.68,124.23,124.2,2.60452033]
[1766892834617,0.68,124.23,124.2,0.66]
[1766892837918,0.68,124.23,124.2,2.60452033]
[1766892843435,14.92,124.25,124.23,0.71]
[1766892843436,0.2,124.25,124.23,0.71]
[1766892843734,0.2,124.26,124.24,2.55452033]
[1766892844407,0.87,124.26,124.24,2.55452033]
[1766892844726,0.67,124.24,124.21,10.19087816]
[1766892844929,2.61452033,124.24,124.2,2.55452033]
[1766892846240,0.67,124.23,124.2,2.55452033]
[1766892850933,0.67,124.23,124.2,2.05452033]
[1766892855046,0.67,124.23,124.2,10.10602483]
[1766892855741,0.7,124.25,124.22,1.94452033]
[1766892855949,0.9,124.26,124.23,2.05452033]
[1766892856245,0.2,124.26,124.23,1.94452033]
[1766892856416,0.7,124.25,124.23,1.94452033]
[1766892857948,0.7,124.25,124.23,3.03690081]
[1766892862428,0.7,124.25,124.23,3.14690081]
[1766892864744,0.7,124.25,124.23,3.03690081]
[1766892875185,0.7,124.25,124.23,11.0861543]
[1766892876161,0.7,124.25,124.23,11.1961543]
[1766892881980,0.7,124.25,124.23,11.0861543]
[1766892912190,0.7,124.25,124.23,3.03690081]
[1766892920000,0.7,124.25,124.23,1.94345966]
[1766892934008,0.7,124.25,124.24,1.94345966]
[1766892935807,0.7,124.25,124.22,8.15997338]
[1766892935989,0.7,124.25,124.24,1.94345966]
[1766892939111,0.7,124.25,124.23,1.94345966]
[1766892940909,0.7,124.25,124.24,1.94345966]
[1766892941620,0.7,124.25,124.23,1.94345966]
[1766892948011,0.7,124.25,124.22,8.15997338]
[1766892948216,0.7,124.25,124.23,1.94345966]
[1766892963828,0.7,124.25,124.22,8.15997338]
[1766892964009,0.7,124.25,124.23,1.94345966]
[1766892979940,0.7,124.25,124.23,3.0369054]
[1766892990543,0.7,124.25,124.23,11.08625471]
[1766892991240,0.7,124.25,124.23,3.0369054]
[1766892991543,0.91,124.26,124.23,3.1469054]
[1766892997149,0.2,124.26,124.23,3.0369054]
[1766892997336,0.71,124.25,124.23,3.0369054]
[1766892997645,0.71,124.25,124.23,3.1469054]
[1766892998047,0.71,124.25,124.23,3.0369054]
[1766892998448,0.71,124.25,124.23,3.1469054]
[1766892998951,0.71,124.25,124.23,3.0369054]
[1766892999848,0.71,124.25,124.23,3.1469054]
[1766893003257,0.71,124.25,124.23,0.11]
[1766893004049,0.71,124.25,124.23,3.1469054]
[1766893004256,0.71,124.25,124.23,0.11]
[1766893004456,0.71,124.25,124.23,3.1469054]
[1766893004632,0.71,124.25,124.23,3.0369054]
[1766893004955,0.71,124.23,124.17,3.0369054]
[1766893005260,0.71,124.2,124.17,3.0369054]
[1766893005555,0.71,124.2,124.18,3.0369054]
[1766893006057,0.71,124.2,124.17,11.09017829]
[1766893010536,0.71,124.2,124.18,3.1469054]
[1766893010737,0.71,124.21,124.18,3.1469054]
[1766893011859,0.71,124.21,124.19,3.0369054]
[1766893012038,0.71,124.22,124.19,3.1469054]
[1766893016062,0.71,124.22,124.19,11.19903894]
[1766893016965,0.71,124.22,124.2,3.0369054]
[1766893018364,0.71,124.22,124.19,11.08903894]
[1766893018567,0.7,124.21,124.19,3.0369054]
[1766893024969,0.7,124.21,124.18,11.19947561]
[1766893027272,0.7,124.21,124.19,3.0369054]
[1766893028674,0.7,124.21,124.18,8.16257021]
[1766893028878,0.7,124.21,124.19,3.0369054]
[1766893030481,0.7,124.21,124.18,11.19947561]
[1766893035295,0.7,124.21,124.19,3.0369054]
[1766893041989,0.7,124.21,124.19,1.94478809]
[1766893043395,0.7,124.21,124.18,22.88257021]
[1766893043574,0.7,124.21,124.19,1.94478809]
[1766893046701,0.7,124.21,124.18,24.8273583]
[1766893047292,0.7,124.21,124.18,9.9973583]
[1766893048504,0.7,124.21,124.19,1.94478809]
[1766893055291,1.94478809,124.2,124.16,60.0]
[1766893055503,0.71,124.18,124.16,60.0]
[1766893056608,0.68,124.17,124.16,57.84]
[1766893056797,0.68,124.17,124.16,57.79]
[1766893062219,0.58,124.23,124.16,60.44478809]
[1766893062403,0.58,124.19,124.16,60.44478809]
[1766893067829,2.52478809,124.19,124.16,58.5]
[1766893101251,2.52478809,124.19,124.16,54.29254422]
[1766893103958,3.62096586,124.19,124.16,54.29254422]
[1766893116067,0.58,124.19,124.16,53.58254422]
[1766893116253,0.58,124.19,124.16,54.28254422]
[1766893116452,3.62096586,124.2,124.17,0.7]
[1766893120666,3.04096586,124.19,124.17,0.7]
[1766893136487,0.58,124.2,124.17,0.7]
[1766893136488,3.62096586,124.2,124.17,0.7]
[1766893150003,3.04096586,124.19,124.17,0.7]
[1766893150293,3.62096586,124.2,124.17,0.7]
[1766893150668,3.04096586,124.2,124.17,0.7]
[1766893162125,15.3,124.22,124.17,11.09422661]
[1766893162427,18.34096586,124.22,124.19,0.72]
[1766893165128,3.62096586,124.22,124.19,0.72]
[1766893165913,2.52510602,124.22,124.19,0.72]
[1766893168229,1.94510602,124.23,124.2,0.72]
[1766893168630,2.52510602,124.23,124.2,0.72]
[1766893169731,0.58,124.23,124.2,2.66510602]
[1766893175116,0.58,124.23,124.2,0.72]
[1766893175117,2.52510602,124.23,124.2,0.72]
[1766893176737,0.58,124.21,124.18,0.72]
[1766893176942,2.52510602,124.22,124.19,0.72]
[1766893177145,1.94510602,124.21,124.19,0.72]
[1766893177945,2.52510602,124.22,124.19,0.72]
[1766893182147,0.58,124.22,124.19,0.72]
[1766893189549,0.58,124.22,124.19,2.66510602]
[1766893189953,0.58,124.22,124.19,0.72]
[1766893190249,15.3,124.24,124.21,0.66]
[1766893190443,0.58,124.24,124.22,0.66]
[1766893192762,2.52510602,124.24,124.22,0.66]
[1766893194958,0.58,124.24,124.22,0.66]
[1766893195159,2.52510602,124.24,124.22,0.66]
[1766893200646,2.52510602,124.24,124.17,96.75271922]
[1766893200647,0.58,124.22,124.18,0.71]
[1766893200849,2.52510602,124.22,124.19,0.71]
[1766893203666,1.94510602,124.22,124.19,2.65510602]
[1766893205067,2.52510602,124.22,124.19,0.71]
[1766893207372,2.52510602,124.2,124.17,0.71]
[1766893210778,1.94510602,124.2,124.17,0.71]
[1766893219586,2.52510602,124.2,124.17,0.71]
[1766893223094,2.52510602,124.2,124.17,2.65510602]
[1766893225998,3.62012846,124.2,124.17,3.75012846]
[1766893233097,3.62012846,124.2,124.18,0.71]
[1766893233303,3.62012846,124.22,124.19,0.71]
[1766893233799,14.72,124.23,124.2,0.71]
[1766893233800,18.34012846,124.23,124.2,0.71]
[1766893238401,3.62012846,124.23,124.2,0.71]
[1766893255607,0.58,124.23,124.2,0.71]
[1766893256207,0.58,124.23,124.2,3.75012846]
[1766893256806,0.58,124.23,124.2,0.71]
[1766893257010,0.58,124.23,124.2,3.75012846]
[1766893266214,0.58,124.23,124.2,0.71]
[1766893267619,3.62012846,124.23,124.2,0.71]
[1766893286222,30.82103896,124.25,124.2,3.04012846]
[1766893286433,3.62012846,124.24,124.21,0.7]
[1766893287950,2.52459022,124.24,124.21,0.7]
[1766893290926,0.58,124.24,124.21,0.7]
[1766893291230,1.94459022,124.24,124.21,0.7]
[1766893296334,8.62849307,124.25,124.21,0.7]
[1766893296540,1.94459022,124.24,124.21,0.7]
[1766893296942,1.94459022,124.24,124.21,1.94459022]
[1766893297127,1.94459022,124.24,124.22,0.7]
[1766893312350,9.99357247,124.24,124.22,0.7]
[1766893315831,9.99357247,124.24,124.2,1.94459022]
[1766893316026,10.57357247,124.24,124.21,0.71]
[1766893320957,8.62898225,124.24,124.21,0.71]
[1766893347984,8.04898225,124.24,124.22,0.69]
[1766893348572,8.04898225,124.24,124.21,3.03777271]
[1766893348573,0.78,124.26,124.23,3.72777271]
[1766893349373,11.86562691,124.26,124.23,3.72777271]
[1766893349768,8.8278542,124.26,124.23,3.72777271]
[1766893349976,0.2,124.26,124.24,0.69]
[1766893353657,0.2,124.26,124.24,0.639]
[1766893363022,8.24653222,124.28,124.25,0.69]
[1766893363168,0.2,124.28,124.26,0.69]
[1766893363486,0.87,124.28,124.26,0.69]
[1766893364996,3.90777271,124.28,124.26,0.69]
[1766893366494,0.87,124.28,124.26,0.69]
[1766893368281,0.87,124.28,124.26,0.639]
[1766893369186,0.2,124.28,124.26,0.639]
[1766893370477,0.9,124.28,124.26,0.639]
[1766893371297,0.2,124.28,124.26,3.67677271]
[1766893373294,0.9,124.28,124.26,3.67677271]
[1766893374807,0.9,124.28,124.26,0.639]
[1766893379589,0.9,124.28,124.26,3.67677271]
[1766893382592,0.2,124.28,124.26,3.67677271]
[1766893385705,0.86,124.28,124.26,3.67677271]
[1766893386098,0.86,124.28,124.26,0.639]
[1766893386510,0.86,124.28,124.26,3.67677271]
[1766893390113,3.69777271,124.27,124.23,3.03777271]
[1766893390301,3.69777271,124.26,124.22,0.72]
[1766893390491,3.69777271,124.26,124.23,0.72]
[1766893394600,0.66,124.24,124.21,3.75777271]
[1766893394798,3.69777271,124.24,124.21,0.72]
[1766893394986,3.69777271,124.24,124.21,3.75777271]
[1766893395193,0.66,124.24,124.21,3.75777271]
[1766893400225,0.66,124.24,124.22,0.66]
[1766893400404,0.66,124.24,124.22,3.69777271]
[1766893401927,0.66,124.24,124.22,0.66]
[1766893416837,0.66,124.24,124.21,1.94427809]
[1766893417130,1.94427809,124.24,124.21,0.66]
[1766893417335,0.67,124.23,124.21,0.66]
[1766893426041,1.94427809,124.24,124.21,0.66]
[1766893426340,2.60427809,124.24,124.21,0.66]
[1766893430338,2.60427809,124.24,124.21,10.65511609]
[1766893430549,0.66,124.24,124.21,10.65511609]
[1766893430841,0.66,124.24,124.22,0.71]
[1766893438945,0.66,124.24,124.21,10.65511609]
[1766893439144,0.66,124.24,124.22,0.66]
[1766893443849,2.61427809,124.25,124.22,0.66]
[1766893444727,0.67,124.24,124.21,9.99511609]
[1766893444928,0.67,124.24,124.21,10.65511609]
[1766893445229,0.67,124.24,124.21,9.99511609]
[1766893445437,0.67,124.24,124.22,0.66]
[1766893446843,0.67,124.24,124.21,9.99511609]
[1766893447051,0.67,124.24,124.21,10.65511609]
[1766893447951,2.61427809,124.25,124.22,0.66]
[1766893449129,0.67,124.27,124.23,1.94427809]
[1766893449349,0.67,124.27,124.24,2.60427809]
[1766893449745,0.67,124.27,124.24,0.66]
[1766893451353,2.61427809,124.27,124.24,0.66]
[1766893455057,1.94427809,124.26,124.24,0.66]
[1766893455357,2.61427809,124.27,124.24,0.66]
[1766893457835,0.67,124.27,124.24,0.66]
[1766893458035,2.61427809,124.27,124.24,0.66]
[1766893461957,2.64427809,124.26,124.23,0.71]
[1766893464539,1.94427809,124.26,124.23,0.71]
[1766893467061,0.7,124.26,124.23,0.71]
[1766893467252,1.94427809,124.25,124.23,0.71]
[1766893469971,3.03791185,124.25,124.23,0.71]
[1766893472172,3.73791185,124.26,124.23,0.71]
[1766893481480,3.03791185,124.26,124.21,22.7505974]
[1766893481667,0.7,124.25,124.22,0.71]
[1766893481970,3.73791185,124.25,124.22,0.71]
[1766893484571,3.73791185,124.24,124.22,0.71]
[1766893488390,3.03791185,124.24,124.22,0.71]
[1766893488586,11.78626298,124.25,124.22,0.71]
[1766893493290,3.73791185,124.25,124.22,0.71]
[1766893497793,8.04699444,124.27,124.22,0.71]
[1766893497986,0.69,124.26,124.23,3.73791185]
[1766893498192,0.69,124.26,124.24,0.7]
[1766893500295,3.72791185,124.27,124.24,0.7]
[1766893500613,0.69,124.27,124.24,3.73791185]
[1766893500807,15.59,124.28,124.26,0.7]
[1766893501101,0.2,124.28,124.26,0.7]
[1766893501685,0.89,124.28,124.25,3.03791185]
[1766893501984,0.89,124.28,124.25,3.73791185]
[1766893502881,3.92791185,124.28,124.25,3.73791185]
[1766893504890,0.89,124.28,124.25,3.73791185]
[1766893505805,3.92791185,124.28,124.25,0.7]
[1766893505989,0.69,124.27,124.25,0.7]
[1766893506194,3.72791185,124.27,124.25,0.7]
[1766893506574,3.72791185,124.27,124.23,3.73791185]
[1766893507002,3.72791185,124.27,124.23,3.03791185]
[1766893507203,3.72791185,124.27,124.24,0.7]
[1766893507794,3.03791185,124.26,124.24,0.7]
[1766893509503,3.72791185,124.27,124.24,0.7]
[1766893520487,0.68,124.26,124.24,0.7]
[1766893522116,3.03791185,124.26,124.23,0.7]
[1766893522290,0.68,124.25,124.23,0.7]
[1766893522909,11.7656859,124.26,124.23,0.7]
[1766893525421,8.72777405,124.26,124.23,0.7]
[1766893525713,11.7656859,124.26,124.23,0.7]
[1766893527322,3.71791185,124.25,124.23,0.7]
[1766893528812,3.03791185,124.25,124.23,0.7]
[1766893529917,1.94410816,124.25,124.23,0.7]
[1766893530418,2.62410816,124.25,124.23,0.7]
[1766893530818,1.94410816,124.24,124.21,0.7]
[1766893530998,2.62410816,124.22,124.19,0.7]
[1766893533226,0.68,124.22,124.19,0.7]
[1766893533414,2.62410816,124.22,124.19,0.7]
[1766893540022,1.94410816,124.21,124.19,0.7]
[1766893554843,8.73046043,124.22,124.19,0.7]
[1766893555022,1.94410816,124.21,124.19,0.7]
[1766893567932,2.61410816,124.21,124.19,0.7]
[1766893568653,2.61410816,124.21,124.18,0.66]
[1766893592070,3.70981277,124.21,124.18,0.66]
[1766893607472,0.67,124.21,124.18,0.66]
[1766893607678,3.70981277,124.21,124.18,0.66]
[1766893609480,0.71,124.24,124.2,0.71]
[1766893609665,3.74981277,124.25,124.21,0.71]
[1766893609981,3.74981277,124.24,124.21,3.74981277]
[1766893613485,0.71,124.24,124.21,3.74981277]
[1766893616989,3.74981277,124.24,124.21,3.74981277]
[1766893618888,0.71,124.24,124.21,3.74981277]
[1766893620388,3.03981277,124.25,124.22,0.65]
[1766893620590,3.03981277,124.26,124.22,3.03981277]
[1766893620780,18.41981277,124.27,124.24,0.65]
[1766893621297,0.66,124.27,124.25,0.65]
[1766893622589,0.86,124.28,124.25,3.68981277]
[1766893622780,0.86,124.28,124.26,0.65]
[1766893623084,0.86,124.28,124.26,0.599]
[1766893628498,0.2,124.28,124.26,0.599]
[1766893635598,0.91,124.28,124.26,0.599]
[1766893636006,0.2,124.28,124.26,0.599]
[1766893641899,0.91,124.28,124.26,0.599]
[1766893657015,10.18954525,124.28,124.22,0.67]
[1766893657221,2.65299565,124.26,124.23,1.94299565]
[1766893657422,2.65299565,124.26,124.23,0.67]
[1766893661640,2.65299565,124.26,124.23,2.61299565]
[1766893666635,0.71,124.26,124.24,1.94299565]
[1766893666816,0.69,124.27,124.24,2.64299565]
[1766893667020,0.69,124.27,124.24,1.94299565]
[1766893667221,10.18961406,124.28,124.25,0.7]
[1766893667222,2.14299565,124.28,124.25,0.7]
[1766893667425,2.83299565,124.28,124.25,2.64299565]
[1766893668125,0.89,124.28,124.25,2.64299565]
[1766893676539,0.89,124.28,124.25,0.7]
[1766893676746,2.83299565,124.28,124.25,0.7]
[1766893679860,1.94299565,124.27,124.25,0.7]
[1766893680055,2.65299565,124.27,124.25,0.7]
[1766893680751,2.65299565,124.26,124.23,0.7]
[1766893685644,0.71,124.26,124.23,2.64299565]
[1766893686659,0.71,124.26,124.23,0.7]
[1766893686853,0.71,124.26,124.23,2.64299565]
[1766893689051,0.71,124.26,124.23,1.94299565]
[1766893689257,0.71,124.26,124.24,0.7]
[1766893714189,1.94299565,124.27,124.24,0.7]
[1766893714389,2.64299565,124.27,124.24,0.7]
[1766893715992,3.73683286,124.27,124.24,0.7]
[1766893734675,0.7,124.27,124.24,0.7]
[1766893740816,3.73683286,124.27,124.24,0.7]
[1766893741406,3.23683286,124.28,124.25,0.68]
[1766893741698,0.2,124.28,124.26,0.68]
[1766893742086,0.2,124.28,124.26,0.629]
[1766893771334,0.89,124.28,124.26,0.629]
[1766893792471,0.2,124.28,124.26,0.629]
[1766893800584,8.94636881,124.28,124.26,0.629]
[1766893800792,10.88947745,124.28,124.26,0.629]
[1766893801766,10.18947745,124.28,124.22,0.7]
[1766893801966,2.64310864,124.26,124.23,0.7]
[1766893803297,2.64310864,124.26,124.23,1.94310864]
[1766893803583,0.7,124.26,124.24,0.7]
[1766893811676,1.94310864,124.27,124.24,0.7]
[1766893812078,2.64310864,124.27,124.24,0.7]
[1766893813988,2.14310864,124.28,124.24,2.64310864]
[1766893814191,0.2,124.28,124.26,0.7]
[1766893833108,2.14310864,124.28,124.26,0.7]
[1766893836811,2.80310864,124.28,124.26,0.7]
[1766893837108,0.86,124.28,124.26,0.7]
[1766893849902,0.71,124.26,124.21,8.04929693]
[1766893850203,3.03608258,124.25,124.22,0.66]
[1766893850403,3.74608258,124.25,124.22,0.66]
[1766893852731,33.83459437,124.27,124.23,0.7]
[1766893852926,25.78319592,124.27,124.23,0.7]
[1766893853108,26.46319592,124.27,124.23,0.7]
[1766893853514,11.76319592,124.27,124.23,0.7]
[1766893854024,3.03608258,124.26,124.23,0.7]
[1766893855227,3.71608258,124.24,124.19,8.05216702]
[1766893855430,3.03608258,124.23,124.2,0.7]
[1766893855732,3.71608258,124.23,124.2,0.7]
[1766893858328,3.03608258,124.22,124.2,8.75151807]
[1766893858934,3.03608258,124.22,124.21,0.7]
[1766893864049,3.71608258,124.23,124.21,0.7]
[1766893867048,11.2720461,124.26,124.21,0.7]
[1766893867343,3.03608258,124.24,124.21,0.7]
[1766893867846,3.71608258,124.25,124.22,0.7]
[1766893868540,3.03608258,124.25,124.22,0.7]
[1766893873474,0.68,124.26,124.22,0.7]
[1766893873772,3.03608258,124.25,124.22,0.7]
[1766893875975,0.68,124.26,124.22,0.7]
[1766893876279,3.03608258,124.25,124.22,0.7]
[1766893876662,3.71608258,124.26,124.23,0.68]
[1766893876864,0.68,124.26,124.23,0.68]
[1766893879984,3.68608258,124.27,124.24,0.68]
[1766893880367,0.65,124.26,124.24,0.68]
[1766893887785,3.03608258,124.27,124.24,0.68]
[1766893888091,3.68608258,124.27,124.24,0.68]
[1766893889161,0.85,124.28,124.24,0.68]
[1766893889364,3.68608258,124.27,124.24,0.68]
[1766893899990,2.59346519,124.27,124.24,0.68]
[1766893917903,1.94346519,124.27,124.24,0.68]
[1766893918194,1.94346519,124.27,124.23,8.04952443]
[1766893918195,0.66,124.26,124.23,8.75952443]
[1766893921003,0.66,124.26,124.23,8.04952443]
[1766893921191,2.60346519,124.27,124.24,0.71]
[1766893921999,0.66,124.27,124.24,0.71]
[1766893922303,0.86,124.28,124.25,0.71]
[1766893922782,0.2,124.28,124.26,0.71]
[1766893927687,0.86,124.28,124.26,0.71]
[1766893932703,0.2,124.28,124.26,0.71]
[1766893949416,0.2,124.28,124.26,8.75761366]
[1766893953217,0.2,124.3,124.28,0.66]
[1766893954407,0.2,124.3,124.28,8.70618626]
[1766893963908,0.91,124.3,124.28,8.70618626]
[1766893982443,0.91,124.3,124.28,0.66]
[1766893982633,3.94438249,124.3,124.28,8.70633124]
[1766893983024,0.91,124.3,124.28,8.70633124]
[1766894006659,0.2,124.3,124.28,8.70633124]
[1766894035500,0.2,124.3,124.28,0.66]
[1766894053126,0.84,124.31,124.28,0.66]
[1766894076460,0.84,124.31,124.27,1.94211991]
[1766894076768,0.68,124.3,124.27,2.66211991]
[1766894076943,0.68,124.3,124.27,0.72]
[1766894081059,0.68,124.3,124.27,2.66211991]
[1766894081461,0.68,124.3,124.27,0.72]
[1766894084471,0.68,124.3,124.27,11.80182579]
[1766894091773,0.68,124.3,124.27,8.7669099]
[1766894092075,0.68,124.3,124.27,11.80182579]
[1766894101182,0.68,124.3,124.27,8.7669099]
[1766894101383,0.68,124.3,124.27,11.80182579]
[1766894123697,3.03491589,124.28,124.25,0.68]
[1766894123994,0.69,124.27,124.25,15.38]
[1766894125100,3.72491589,124.28,124.25,15.38]
[1766894125298,3.72491589,124.28,124.25,8.72821943]
[1766894133005,0.69,124.28,124.25,8.72821943]
[1766894133704,0.69,124.28,124.25,8.04821943]
[1766894133910,0.69,124.28,124.26,0.68]
[1766894135609,0.69,124.28,124.25,8.04821943]
[1766894135913,0.69,124.28,124.25,8.72821943]
[1766894143316,0.69,124.27,124.25,8.72821943]
[1766894148100,0.69,124.27,124.25,8.04821943]
[1766894148521,0.69,124.27,124.24,0.71]
[1766894150216,2.63307425,124.27,124.24,8.75870859]
[1766894154034,0.69,124.27,124.24,8.75870859]
[1766894160030,2.63307425,124.27,124.24,8.75870859]
[1766894166054,0.69,124.27,124.24,8.75870859]
[1766894180055,2.63307425,124.27,124.24,8.75870859]
[1766894184439,0.69,124.27,124.24,8.75870859]
[1766894214796,0.6,124.24,124.21,24.84648902]
[1766894214992,3.63635985,124.24,124.21,24.84648902]
[1766894215492,3.63635985,124.24,124.21,0.71]
[1766894216291,3.63635985,124.24,124.21,8.76035207]
[1766894221000,0.6,124.24,124.22,0.71]
[1766894221383,3.63635985,124.25,124.22,0.71]
[1766894231314,0.6,124.27,124.23,3.74635985]
[1766894231490,0.6,124.27,124.24,0.71]
[1766894232208,3.63635985,124.27,124.24,0.71]
[1766894233114,3.57635985,124.27,124.24,0.71]
[1766894235014,0.54,124.27,124.24,0.71]
[1766894245427,3.57635985,124.27,124.24,0.71]
[1766894249809,0.54,124.27,124.24,0.71]
[1766894250009,3.57635985,124.27,124.24,0.71]
[1766894259546,0.54,124.27,124.24,0.71]
[1766894259722,3.57635985,124.27,124.24,0.71]
[1766894265964,2.48343312,124.27,124.24,0.71]
[1766894278961,0.54,124.27,124.24,0.71]
[1766894280962,2.48343312,124.27,124.24,0.71]
[1766894282666,0.54,124.27,124.24,0.71]
[1766894282865,2.48343312,124.27,124.24,0.71]
[1766894283242,0.54,124.27,124.24,0.71]
[1766894283442,2.48343312,124.27,124.24,0.71]
[1766894288362,1.94343312,124.27,124.25,0.68]
[1766894293681,2.48343312,124.28,124.25,0.68]
[1766894296273,1.94343312,124.28,124.25,0.68]
[1766894296480,0.54,124.27,124.25,0.68]
[1766894299773,2.48343312,124.27,124.24,0.71]
[1766894320982,1.94343312,124.26,124.24,0.71]
[1766894325993,3.03696173,124.26,124.24,0.71]
[1766894381334,3.57696173,124.27,124.24,0.71]
[1766894387934,2.48368484,124.27,124.24,0.71]
[1766894389635,1.94368484,124.26,124.24,0.71]
[1766894398164,1.94368484,124.25,124.21,73.89365439]
[1766894398438,1.94368484,124.23,124.21,0.72]
[1766894399023,1.94368484,124.23,124.21,8.77079026]
[1766894399237,1.94368484,124.23,124.22,0.72]
[1766894401539,1.94368484,124.23,124.21,0.72]
[1766894401746,1.94368484,124.22,124.2,0.72]
[1766894404244,1.94368484,124.21,124.2,0.72]
[1766894404945,2.48368484,124.21,124.18,0.72]
[1766894405120,1.94368484,124.19,124.18,0.72]
[1766894406152,0.54,124.18,124.16,53.58254422]
[1766894406372,0.54,124.16,124.14,0.1]
[1766894406554,1.94368484,124.15,124.13,0.1]
[1766894406760,9.99539352,124.17,124.13,0.82]
[1766894407073,2.38368484,124.18,124.15,0.72]
[1766894407573,2.38368484,124.17,124.15,0.72]
[1766894407778,2.38368484,124.17,124.14,0.72]
[1766894408071,1.94368484,124.16,124.14,0.72]
[1766894408678,0.44,124.17,124.14,0.72]
[1766894408989,1.94368484,124.16,124.14,0.72]
[1766894409268,1.94368484,124.15,124.13,0.82]
[1766894409468,1.94368484,124.14,124.13,0.82]
[1766894410666,1.94368484,124.14,124.13,0.1]
[1766894410874,0.34,124.13,124.11,0.1]
[1766894411064,1.94368484,124.12,124.11,0.1]
[1766894411470,2.28368484,124.13,124.11,0.1]
[1766894416076,1.94368484,124.12,124.11,0.1]
[1766894416270,2.28368484,124.13,124.11,0.1]
[1766894419268,5.51066237,124.15,124.12,0.7]
[1766894419579,2.28368484,124.16,124.13,0.7]
[1766894420382,1.94368484,124.15,124.13,0.7]
[1766894420688,2.28368484,124.15,124.13,0.7]
[1766894420860,3.22645694,124.17,124.13,0.7]
[1766894421060,2.28368484,124.16,124.13,0.7]
[1766894427284,1.94368484,124.14,124.11,0.1]
[1766894427475,1.94368484,124.12,124.11,0.1]
[1766894428182,1.94368484,124.12,124.1,0.8]
[1766894428387,1.94368484,124.11,124.1,0.8]
[1766894429086,11.28282979,124.14,124.09,0.1]
[1766894429270,1.94368484,124.1,124.09,0.1]
[1766894429672,1.94368484,124.11,124.09,0.1]
[1766894429875,2.65368484,124.11,124.09,0.1]
[1766894430391,1.94368484,124.11,124.09,0.1]
[1766894430992,1.94368484,124.11,124.09,0.8]
[1766894431195,2.65368484,124.12,124.09,0.8]
[1766894434191,0.71,124.11,124.09,0.8]
[1766894436175,1.94368484,124.12,124.09,0.8]
[1766894436390,2.65368484,124.12,124.09,0.8]
[1766894436588,0.71,124.12,124.09,0.8]
[1766894436896,2.65368484,124.12,124.09,0.8]
[1766894437198,1.94368484,124.12,124.09,0.8]
[1766894437495,0.71,124.11,124.09,0.8]
[1766894439886,2.65368484,124.12,124.09,0.8]
[1766894440496,1.94368484,124.12,124.09,0.8]
[1766894440698,0.71,124.11,124.09,0.8]
[1766894442575,0.71,124.12,124.1,2.64368484]
[1766894442775,0.71,124.12,124.1,0.7]
[1766894444403,5.7,124.13,124.11,0.7]
[1766894444891,6.4,124.13,124.11,0.7]
[1766894446695,5.7,124.13,124.12,0.68]
[1766894454508,5.7,124.13,124.12,8.7367193]
[1766894454689,5.7,124.13,124.12,11.77943042]
[1766894455600,0.72,124.17,124.13,0.7]
[1766894455802,0.72,124.16,124.14,3.04271112]
[1766894456003,0.72,124.16,124.13,3.74271112]